[Event "Titled Tuesday Blitz June 15 2021"]
[White "Moskalenko, Alexander"]
[Black "Gunina, Valentina"]
[WhiteFideId "4155351"]
[BlackFideId "4167570"]
[WhiteElo "2495"]
[BlackElo "2399"]
[Result "1-0"]
[Round "09"]
[TimeControl "180+1"]
[Date "2021.06.15"]
[WhiteClock "0:00:02"]
[BlackClock "0:00:02"]

1. d4 {[%clk 0:03:00]}  d5 {[%clk 0:02:58]} 2. c4 {[%clk 0:03:00]}  c6 {[%clk 0:02:58]} 3. Nf3 {[%clk 0:03:01]}  Nf6 {[%clk 0:02:58]} 4. e3 {[%clk 0:02:59]}  Bg4 {[%clk 0:02:58]} 5. h3 {[%clk 0:02:55]}  Bh5 {[%clk 0:02:57]} 6. Nc3 {[%clk 0:02:55]}  Nbd7 {[%clk 0:02:45]} 7. cxd5 {[%clk 0:02:54]}  cxd5 {[%clk 0:02:40]} 8. Qb3 {[%clk 0:02:48]}  Bxf3 {[%clk 0:02:23]} 9. gxf3 {[%clk 0:02:48]}  e6 {[%clk 0:02:12]} 10. f4 {[%clk 0:02:46]}  Rb8 {[%clk 0:02:07]} 11. Bd3 {[%clk 0:02:41]}  g6 {[%clk 0:02:05]} 12. Bd2 {[%clk 0:02:39]}  Be7 {[%clk 0:02:05]} 13. Rc1 {[%clk 0:02:39]}  O-O {[%clk 0:02:04]} 14. Ke2 {[%clk 0:02:29]}  a6 {[%clk 0:02:04]} 15. Rcg1 {[%clk 0:02:19]}  b5 {[%clk 0:02:03]} 16. h4 {[%clk 0:02:17]}  Nh5 {[%clk 0:02:00]} 17. Rg4 {[%clk 0:02:01]}  f5 {[%clk 0:01:57]} 18. Rgg1 {[%clk 0:01:58]}  Nb6 {[%clk 0:01:57]} 19. Ke1 {[%clk 0:01:41]}  Kh8 {[%clk 0:01:53]} 20. Be2 {[%clk 0:01:38]}  Nc4 {[%clk 0:01:49]} 21. Nd1 {[%clk 0:01:35]}  Rc8 {[%clk 0:01:25]} 22. Qd3 {[%clk 0:01:34]}  a5 {[%clk 0:01:09]} 23. a3 {[%clk 0:01:23]}  b4 {[%clk 0:01:07]} 24. a4 {[%clk 0:01:23]}  Qd7 {[%clk 0:01:01]} 25. b3 {[%clk 0:01:22]}  Nxd2 {[%clk 0:00:59]} 26. Qxd2 {[%clk 0:01:05]}  Rc7 {[%clk 0:00:59]} 27. Bxh5 {[%clk 0:00:57]}  gxh5 {[%clk 0:00:59]} 28. Qe2 {[%clk 0:00:58]}  Qe8 {[%clk 0:00:59]} 29. Kd2 {[%clk 0:00:52]}  Bf6 {[%clk 0:00:56]} 30. Rg3 {[%clk 0:00:31]}  Rg8 {[%clk 0:00:51]} 31. Rxg8+ {[%clk 0:00:30]}  Kxg8 {[%clk 0:00:51]} 32. Rg1+ {[%clk 0:00:29]}  Kh8 {[%clk 0:00:51]} 33. Qa6 {[%clk 0:00:26]}  Qc8 {[%clk 0:00:46]} 34. Qxa5 {[%clk 0:00:16]}  Rc1 {[%clk 0:00:43]} 35. Ke2 {[%clk 0:00:11]}  Bxh4 {[%clk 0:00:19]} 36. Qxb4 {[%clk 0:00:07]}  Qc2+ {[%clk 0:00:17]} 37. Qd2 {[%clk 0:00:06]}  Qc7 {[%clk 0:00:16]} 38. Kf3 {[%clk 0:00:06]}  Be7 {[%clk 0:00:12]} 39. Qd3 {[%clk 0:00:01]}  h4 {[%clk 0:00:12]} 40. Qa6 {[%clk 0:00:02]}  Rc6 {[%clk 0:00:11]} 41. Qa8+ {[%clk 0:00:02]}  Bd8 {[%clk 0:00:10]} 42. Nb2 {[%clk 0:00:01]}  Rd6 {[%clk 0:00:09]} 43. Nd3 {[%clk 0:00:02]}  Qf7 {[%clk 0:00:07]} 44. Ne5 {[%clk 0:00:02]}  Qh5+ {[%clk 0:00:07]} 45. Kg2 {[%clk 0:00:03]}  h3+ {[%clk 0:00:07]} 46. Kh2 {[%clk 0:00:03]}  h6 {[%clk 0:00:07]} 47. Qb7 {[%clk 0:00:01]}  Rb6 {[%clk 0:00:02]} 48. Nf7+ {[%clk 0:00:02]}  Kh7 {[%clk 0:00:02]} 49. Qd7 {[%clk 0:00:02]} 1-0


[Site "https://www.chess.com"]

[Event "Titled Tuesday Blitz June 15 2021"]
[White "Nesterov, Arseniy"]
[Black "Ivanisevic, Ivan"]
[WhiteFideId "24198455"]
[BlackFideId "912417"]
[WhiteElo "2441"]
[BlackElo "2499"]
[Result "0-1"]
[Round "09"]
[TimeControl "180+1"]
[Date "2021.06.15"]
[WhiteClock "0:00:01"]
[BlackClock "0:00:09"]

1. d4 {[%clk 0:03:00]}  Nf6 {[%clk 0:02:58]} 2. c4 {[%clk 0:03:01]}  e6 {[%clk 0:02:59]} 3. Nf3 {[%clk 0:03:01]}  d5 {[%clk 0:02:58]} 4. Nc3 {[%clk 0:03:00]}  Nbd7 {[%clk 0:02:57]} 5. Bg5 {[%clk 0:03:00]}  h6 {[%clk 0:02:51]} 6. Bh4 {[%clk 0:02:58]}  c6 {[%clk 0:02:48]} 7. e3 {[%clk 0:02:57]}  g5 {[%clk 0:02:48]} 8. Bg3 {[%clk 0:02:56]}  Nh5 {[%clk 0:02:48]} 9. Bd3 {[%clk 0:02:53]}  Nxg3 {[%clk 0:02:44]} 10. hxg3 {[%clk 0:02:54]}  Bg7 {[%clk 0:02:45]} 11. g4 {[%clk 0:02:50]}  Nb6 {[%clk 0:02:29]} 12. cxd5 {[%clk 0:02:33]}  exd5 {[%clk 0:02:30]} 13. Bf5 {[%clk 0:02:27]}  Nc4 {[%clk 0:02:25]} 14. Qc2 {[%clk 0:02:25]}  Nd6 {[%clk 0:02:12]} 15. Bxc8 {[%clk 0:02:24]}  Qxc8 {[%clk 0:02:10]} 16. Nh2 {[%clk 0:02:20]}  Qe6 {[%clk 0:01:58]} 17. O-O-O {[%clk 0:02:16]}  O-O-O {[%clk 0:01:58]} 18. Kb1 {[%clk 0:02:06]}  Kb8 {[%clk 0:01:57]} 19. Qe2 {[%clk 0:02:04]}  Rhe8 {[%clk 0:01:50]} 20. Qf3 {[%clk 0:01:54]}  Rf8 {[%clk 0:01:20]} 21. Nf1 {[%clk 0:01:42]}  f5 {[%clk 0:01:19]} 22. gxf5 {[%clk 0:01:42]}  Rxf5 {[%clk 0:01:20]} 23. Qe2 {[%clk 0:01:34]}  Nc4 {[%clk 0:01:11]} 24. Ng3 {[%clk 0:01:31]}  Rf7 {[%clk 0:01:11]} 25. Nh5 {[%clk 0:01:26]}  Bh8 {[%clk 0:01:10]} 26. b3 {[%clk 0:00:57]}  Nd6 {[%clk 0:01:04]} 27. f3 {[%clk 0:00:33]}  Nf5 {[%clk 0:00:59]} 28. Rde1 {[%clk 0:00:29]}  c5 {[%clk 0:00:58]} 29. g4 {[%clk 0:00:22]}  Nh4 {[%clk 0:00:54]} 30. f4 {[%clk 0:00:19]}  cxd4 {[%clk 0:00:48]} 31. exd4 {[%clk 0:00:19]}  Qxe2 {[%clk 0:00:45]} 32. Rxe2 {[%clk 0:00:12]}  Bxd4 {[%clk 0:00:44]} 33. Nb5 {[%clk 0:00:12]}  Bb6 {[%clk 0:00:43]} 34. f5 {[%clk 0:00:13]}  a6 {[%clk 0:00:41]} 35. Nc3 {[%clk 0:00:10]}  d4 {[%clk 0:00:42]} 36. Ne4 {[%clk 0:00:06]}  d3 {[%clk 0:00:40]} 37. Rd2 {[%clk 0:00:05]}  Nf3 {[%clk 0:00:40]} 38. Rdd1 {[%clk 0:00:05]}  Rd4 {[%clk 0:00:29]} 39. Rh3 {[%clk 0:00:03]}  Ne5 {[%clk 0:00:27]} 40. Nf2 {[%clk 0:00:02]}  Nxg4 {[%clk 0:00:25]} 41. Nxg4 {[%clk 0:00:02]}  Rxg4 {[%clk 0:00:25]} 42. f6 {[%clk 0:00:03]}  Rd4 {[%clk 0:00:10]} 43. Rhxd3 {[%clk 0:00:03]}  Rxd3 {[%clk 0:00:11]} 44. Rxd3 {[%clk 0:00:04]}  Kc7 {[%clk 0:00:11]} 45. Rd5 {[%clk 0:00:03]}  Kc6 {[%clk 0:00:11]} 46. Rd3 {[%clk 0:00:03]}  Bc5 {[%clk 0:00:10]} 47. Kc2 {[%clk 0:00:03]}  Bd6 {[%clk 0:00:10]} 48. Kc3 {[%clk 0:00:03]}  Be5+ {[%clk 0:00:10]} 49. Kc4 {[%clk 0:00:03]}  b5+ {[%clk 0:00:10]} 50. Kb4 {[%clk 0:00:04]}  Bxf6 {[%clk 0:00:10]} 51. Ka5 {[%clk 0:00:04]}  Be7 {[%clk 0:00:10]} 52. Kxa6 {[%clk 0:00:04]}  Bc5 {[%clk 0:00:10]} 53. Rd7 {[%clk 0:00:01]}  Rxd7 {[%clk 0:00:09]} 0-1


[Site "https://www.chess.com"]

[Event "Titled Tuesday Blitz June 15 2021"]
[White "Oparin, Grigoriy"]
[Black "Lazavik, Denis"]
[WhiteFideId "24125890"]
[BlackFideId "13515110"]
[WhiteElo "2628"]
[BlackElo "2436"]
[Result "0-1"]
[Round "09"]
[TimeControl "180+1"]
[Date "2021.06.15"]
[WhiteClock "0:00:44"]
[BlackClock "0:00:27"]

1. b3 {[%clk 0:03:00]}  d5 {[%clk 0:02:58]} 2. Bb2 {[%clk 0:03:01]}  Nf6 {[%clk 0:02:57]} 3. Nf3 {[%clk 0:03:01]}  c6 {[%clk 0:02:57]} 4. e3 {[%clk 0:03:02]}  Bf5 {[%clk 0:02:55]} 5. d3 {[%clk 0:03:00]}  e6 {[%clk 0:02:54]} 6. Nbd2 {[%clk 0:03:00]}  h6 {[%clk 0:02:51]} 7. g3 {[%clk 0:03:01]}  Be7 {[%clk 0:02:47]} 8. Bg2 {[%clk 0:03:01]}  O-O {[%clk 0:02:47]} 9. O-O {[%clk 0:03:02]}  a5 {[%clk 0:02:47]} 10. a3 {[%clk 0:03:02]}  Nbd7 {[%clk 0:02:43]} 11. Qe2 {[%clk 0:03:02]}  Bh7 {[%clk 0:02:43]} 12. e4 {[%clk 0:03:02]}  b5 {[%clk 0:02:32]} 13. Rfe1 {[%clk 0:03:02]}  Qb6 {[%clk 0:02:27]} 14. e5 {[%clk 0:02:58]}  Ne8 {[%clk 0:02:26]} 15. h4 {[%clk 0:02:59]}  Nc7 {[%clk 0:02:24]} 16. Nh2 {[%clk 0:02:58]}  a4 {[%clk 0:02:22]} 17. b4 {[%clk 0:02:51]}  c5 {[%clk 0:02:22]} 18. bxc5 {[%clk 0:02:51]}  Bxc5 {[%clk 0:02:15]} 19. Ndf3 {[%clk 0:02:51]}  b4 {[%clk 0:02:11]} 20. axb4 {[%clk 0:02:40]}  Qxb4 {[%clk 0:02:09]} 21. Reb1 {[%clk 0:02:38]}  a3 {[%clk 0:01:55]} 22. Bc1 {[%clk 0:02:26]}  Qa4 {[%clk 0:01:50]} 23. Rb3 {[%clk 0:02:24]}  Rfb8 {[%clk 0:01:41]} 24. Nd2 {[%clk 0:02:18]}  Nb5 {[%clk 0:01:35]} 25. Nhf3 {[%clk 0:02:14]}  a2 {[%clk 0:01:07]} 26. c3 {[%clk 0:02:08]}  Nc7 {[%clk 0:00:55]} 27. Rxb8+ {[%clk 0:01:29]}  Rxb8 {[%clk 0:00:56]} 28. Nf1 {[%clk 0:01:25]}  Ra8 {[%clk 0:00:54]} 29. Ne1 {[%clk 0:01:16]}  Nb5 {[%clk 0:00:52]} 30. Qb2 {[%clk 0:01:12]}  Bf8 {[%clk 0:00:41]} 31. Ne3 {[%clk 0:01:08]}  Nc5 {[%clk 0:00:39]} 32. c4 {[%clk 0:01:07]}  Nb3 {[%clk 0:00:28]} 33. cxb5 {[%clk 0:01:07]}  Nxa1 {[%clk 0:00:28]} 34. Qxa1 {[%clk 0:01:08]}  Qxb5 {[%clk 0:00:28]} 35. Bf1 {[%clk 0:00:55]}  Qb1 {[%clk 0:00:28]} 36. N1c2 {[%clk 0:00:53]}  Rc8 {[%clk 0:00:27]} 37. Bb2 {[%clk 0:00:49]}  Rxc2 {[%clk 0:00:27]} 38. Nxc2 {[%clk 0:00:49]}  Qxc2 {[%clk 0:00:27]} 39. Qxa2 {[%clk 0:00:50]}  Bxd3 {[%clk 0:00:26]} 40. Bxd3 {[%clk 0:00:48]}  Qxd3 {[%clk 0:00:27]} 41. Qa8 {[%clk 0:00:44]}  Qb1+ {[%clk 0:00:27]} 0-1


[Site "https://www.chess.com"]

[Event "Titled Tuesday Blitz June 15 2021"]
[White "Shahade, Gregory"]
[Black "Jones, Gawain C B"]
[WhiteFideId "2009064"]
[BlackFideId "409561"]
[WhiteElo "2729"]
[BlackElo "2657"]
[Result "0-1"]
[Round "09"]
[TimeControl "180+1"]
[Date "2021.06.15"]
[WhiteClock "0:00:08"]
[BlackClock "0:00:12"]

1. e4 {[%clk 0:03:00]}  c5 {[%clk 0:02:52]} 2. Nf3 {[%clk 0:03:00]}  d6 {[%clk 0:02:50]} 3. d4 {[%clk 0:03:00]}  cxd4 {[%clk 0:02:51]} 4. Nxd4 {[%clk 0:03:01]}  Nf6 {[%clk 0:02:52]} 5. Nc3 {[%clk 0:03:01]}  g6 {[%clk 0:02:52]} 6. Be3 {[%clk 0:03:02]}  Bg7 {[%clk 0:02:53]} 7. f3 {[%clk 0:03:02]}  Nc6 {[%clk 0:02:53]} 8. Qd2 {[%clk 0:03:03]}  O-O {[%clk 0:02:53]} 9. O-O-O {[%clk 0:03:03]}  d5 {[%clk 0:02:53]} 10. Qe1 {[%clk 0:03:01]}  e5 {[%clk 0:02:53]} 11. Nxc6 {[%clk 0:03:01]}  bxc6 {[%clk 0:02:53]} 12. exd5 {[%clk 0:03:01]}  Nxd5 {[%clk 0:02:54]} 13. Bc4 {[%clk 0:03:01]}  Be6 {[%clk 0:02:53]} 14. Ne4 {[%clk 0:03:02]}  Qc7 {[%clk 0:02:53]} 15. Bc5 {[%clk 0:03:01]}  Rfd8 {[%clk 0:02:53]} 16. Qh4 {[%clk 0:03:00]}  h6 {[%clk 0:02:38]} 17. g4 {[%clk 0:03:00]}  Nf4 {[%clk 0:02:38]} 18. Bxe6 {[%clk 0:02:57]}  Rxd1+ {[%clk 0:02:37]} 19. Rxd1 {[%clk 0:02:55]}  Nxe6 {[%clk 0:02:38]} 20. Be3 {[%clk 0:02:52]}  Nf4 {[%clk 0:02:20]} 21. Nf6+ {[%clk 0:02:20]}  Bxf6 {[%clk 0:02:00]} 22. Qxf6 {[%clk 0:02:18]}  Re8 {[%clk 0:01:47]} 23. Qd6 {[%clk 0:01:14]}  Ne2+ {[%clk 0:01:16]} 24. Kb1 {[%clk 0:01:13]}  Qb7 {[%clk 0:01:09]} 25. Qd2 {[%clk 0:00:55]}  Nf4 {[%clk 0:00:53]} 26. Bxf4 {[%clk 0:00:53]}  exf4 {[%clk 0:00:54]} 27. Qxf4 {[%clk 0:00:53]}  Kg7 {[%clk 0:00:51]} 28. h4 {[%clk 0:00:52]}  c5 {[%clk 0:00:48]} 29. g5 {[%clk 0:00:47]}  h5 {[%clk 0:00:42]} 30. Qf6+ {[%clk 0:00:47]}  Kh7 {[%clk 0:00:40]} 31. b3 {[%clk 0:00:43]}  c4 {[%clk 0:00:31]} 32. Kb2 {[%clk 0:00:39]}  Re6 {[%clk 0:00:28]} 33. Qc3 {[%clk 0:00:35]}  cxb3 {[%clk 0:00:28]} 34. axb3 {[%clk 0:00:30]}  Rc6 {[%clk 0:00:24]} 35. Qe5 {[%clk 0:00:24]}  Re6 {[%clk 0:00:22]} 36. Qc3 {[%clk 0:00:23]}  Rc6 {[%clk 0:00:22]} 37. Qe3 {[%clk 0:00:21]}  Re6 {[%clk 0:00:20]} 38. Qf4 {[%clk 0:00:20]}  Qe7 {[%clk 0:00:17]} 39. Qd4 {[%clk 0:00:18]}  Re2 {[%clk 0:00:15]} 40. Qc3 {[%clk 0:00:17]}  Re3 {[%clk 0:00:13]} 41. Rd3 {[%clk 0:00:16]}  Rxd3 {[%clk 0:00:13]} 42. Qxd3 {[%clk 0:00:14]}  Qe5+ {[%clk 0:00:13]} 43. Qc3 {[%clk 0:00:14]}  Qf4 {[%clk 0:00:13]} 44. b4 {[%clk 0:00:12]}  Qxh4 {[%clk 0:00:12]} 45. Qf6 {[%clk 0:00:12]}  Qxb4+ {[%clk 0:00:12]} 46. Kc1 {[%clk 0:00:09]}  Qe1+ {[%clk 0:00:12]} 47. Kb2 {[%clk 0:00:09]}  Qe6 {[%clk 0:00:11]} 48. Qd4 {[%clk 0:00:08]}  Qb6+ {[%clk 0:00:11]} 49. Qxb6 {[%clk 0:00:08]}  axb6 {[%clk 0:00:12]} 0-1


[Site "https://www.chess.com"]

[Event "Titled Tuesday Blitz June 15 2021"]
[White "Shipov, Sergei"]
[Black "Sjugirov, Sanan"]
[WhiteFideId "4113624"]
[BlackFideId "4189302"]
[WhiteElo "2791"]
[BlackElo "2472"]
[Result "1/2-1/2"]
[Round "09"]
[TimeControl "180+1"]
[Date "2021.06.15"]
[WhiteClock "0:00:29"]
[BlackClock "0:00:07"]

1. d4 {[%clk 0:03:00]}  Nf6 {[%clk 0:02:59]} 2. c4 {[%clk 0:03:01]}  c6 {[%clk 0:02:56]} 3. Nc3 {[%clk 0:03:01]}  d5 {[%clk 0:02:56]} 4. Nf3 {[%clk 0:03:01]}  dxc4 {[%clk 0:02:51]} 5. a4 {[%clk 0:03:01]}  Bf5 {[%clk 0:02:51]} 6. Nh4 {[%clk 0:03:01]}  e6 {[%clk 0:02:50]} 7. Nxf5 {[%clk 0:03:00]}  exf5 {[%clk 0:02:51]} 8. e3 {[%clk 0:03:01]}  Bd6 {[%clk 0:02:43]} 9. Bxc4 {[%clk 0:03:00]}  O-O {[%clk 0:02:42]} 10. h3 {[%clk 0:02:44]}  Qe7 {[%clk 0:02:34]} 11. Qf3 {[%clk 0:02:22]}  g6 {[%clk 0:02:06]} 12. g4 {[%clk 0:02:19]}  fxg4 {[%clk 0:02:04]} 13. hxg4 {[%clk 0:02:17]}  Nbd7 {[%clk 0:02:04]} 14. g5 {[%clk 0:02:17]}  Nh5 {[%clk 0:02:00]} 15. Rxh5 {[%clk 0:02:17]}  gxh5 {[%clk 0:02:01]} 16. Qxh5 {[%clk 0:02:17]}  Kh8 {[%clk 0:01:48]} 17. Bd2 {[%clk 0:02:17]}  f5 {[%clk 0:01:42]} 18. O-O-O {[%clk 0:02:09]}  b5 {[%clk 0:01:29]} 19. Ba2 {[%clk 0:01:57]}  b4 {[%clk 0:01:21]} 20. Ne2 {[%clk 0:01:57]}  c5 {[%clk 0:01:20]} 21. Rh1 {[%clk 0:01:56]}  c4 {[%clk 0:01:12]} 22. Bxc4 {[%clk 0:01:17]}  Rac8 {[%clk 0:01:11]} 23. b3 {[%clk 0:01:17]}  Nb6 {[%clk 0:01:10]} 24. g6 {[%clk 0:01:17]}  Nxc4 {[%clk 0:01:03]} 25. Qxh7+ {[%clk 0:01:17]}  Qxh7 {[%clk 0:01:03]} 26. Rxh7+ {[%clk 0:01:18]}  Kg8 {[%clk 0:01:03]} 27. bxc4 {[%clk 0:01:18]}  Rxc4+ {[%clk 0:01:03]} 28. Kb1 {[%clk 0:01:15]}  Rfc8 {[%clk 0:01:00]} 29. Nc1 {[%clk 0:01:10]}  R8c7 {[%clk 0:00:52]} 30. Rh5 {[%clk 0:01:08]}  f4 {[%clk 0:00:49]} 31. Rd5 {[%clk 0:01:02]}  fxe3 {[%clk 0:00:47]} 32. fxe3 {[%clk 0:01:03]}  Bf8 {[%clk 0:00:46]} 33. Nb3 {[%clk 0:01:02]}  R4c6 {[%clk 0:00:44]} 34. Nc5 {[%clk 0:00:55]}  Rxg6 {[%clk 0:00:41]} 35. Kc2 {[%clk 0:00:51]}  a5 {[%clk 0:00:31]} 36. Kd3 {[%clk 0:00:51]}  Rd6 {[%clk 0:00:09]} 37. Rxd6 {[%clk 0:00:46]}  Bxd6 {[%clk 0:00:10]} 38. Nb3 {[%clk 0:00:46]}  Ra7 {[%clk 0:00:10]} 39. e4 {[%clk 0:00:47]}  Kf7 {[%clk 0:00:10]} 40. e5 {[%clk 0:00:47]}  Bc7 {[%clk 0:00:09]} 41. Ke4 {[%clk 0:00:45]}  Ra6 {[%clk 0:00:09]} 42. d5 {[%clk 0:00:45]}  Rg6 {[%clk 0:00:08]} 43. e6+ {[%clk 0:00:44]}  Ke7 {[%clk 0:00:08]} 44. Nd4 {[%clk 0:00:44]}  Rg4+ {[%clk 0:00:08]} 45. Kd3 {[%clk 0:00:44]}  Be5 {[%clk 0:00:04]} 46. Nf5+ {[%clk 0:00:35]}  Kf6 {[%clk 0:00:04]} 47. e7 {[%clk 0:00:29]}  Rg8 {[%clk 0:00:04]} 48. Ke4 {[%clk 0:00:30]}  Bc7 {[%clk 0:00:02]} 49. Be3 {[%clk 0:00:27]}  Re8 {[%clk 0:00:01]} 50. Bd4+ {[%clk 0:00:28]}  Kf7 {[%clk 0:00:01]} 51. d6 {[%clk 0:00:28]}  Bxd6 {[%clk 0:00:02]} 52. Nxd6+ {[%clk 0:00:28]}  Kxe7 {[%clk 0:00:02]} 53. Nxe8 {[%clk 0:00:29]}  Kxe8 {[%clk 0:00:03]} 54. Kd5 {[%clk 0:00:29]}  Kd7 {[%clk 0:00:03]} 55. Bb6 {[%clk 0:00:27]}  Kc8 {[%clk 0:00:04]} 56. Bxa5 {[%clk 0:00:27]}  Kb7 {[%clk 0:00:04]} 57. Bxb4 {[%clk 0:00:27]}  Ka8 {[%clk 0:00:05]} 58. Kc6 {[%clk 0:00:28]}  Kb8 {[%clk 0:00:05]} 59. a5 {[%clk 0:00:28]}  Ka8 {[%clk 0:00:06]} 60. a6 {[%clk 0:00:28]}  Ka7 {[%clk 0:00:06]} 61. Kb5 {[%clk 0:00:28]}  Ka8 {[%clk 0:00:07]} 62. Kb6 {[%clk 0:00:29]}  Kb8 {[%clk 0:00:07]} 63. Bd6+ {[%clk 0:00:29]}  Ka8 {[%clk 0:00:07]} 64. a7 {[%clk 0:00:29]} 1/2-1/2


[Site "https://www.chess.com"]

[Event "Titled Tuesday Blitz June 15 2021"]
[White "Ambartsumova, Karina"]
[Black "davigator"]
[WhiteFideId "4166299"]
[WhiteElo "2262"]
[BlackElo "2423"]
[Result "0-1"]
[Round "10"]
[TimeControl "180+1"]
[Date "2021.06.15"]
[WhiteClock "0:00:08"]
[BlackClock "0:00:16"]

1. c4 {[%clk 0:03:00]}  e5 {[%clk 0:02:56]} 2. Nc3 {[%clk 0:03:00]}  Bb4 {[%clk 0:02:56]} 3. Qc2 {[%clk 0:03:00]}  c6 {[%clk 0:02:55]} 4. Nf3 {[%clk 0:02:58]}  d6 {[%clk 0:02:55]} 5. d4 {[%clk 0:02:48]}  Nd7 {[%clk 0:02:51]} 6. g3 {[%clk 0:02:35]}  Ngf6 {[%clk 0:02:50]} 7. Bg2 {[%clk 0:02:34]}  h6 {[%clk 0:02:49]} 8. O-O {[%clk 0:02:31]}  O-O {[%clk 0:02:49]} 9. e4 {[%clk 0:02:21]}  Re8 {[%clk 0:02:44]} 10. Re1 {[%clk 0:02:10]}  a5 {[%clk 0:02:39]} 11. a3 {[%clk 0:02:08]}  Bxc3 {[%clk 0:02:39]} 12. Qxc3 {[%clk 0:02:08]}  Qc7 {[%clk 0:02:38]} 13. h3 {[%clk 0:02:07]}  Nf8 {[%clk 0:02:36]} 14. dxe5 {[%clk 0:01:55]}  dxe5 {[%clk 0:02:36]} 15. c5 {[%clk 0:01:55]}  a4 {[%clk 0:02:30]} 16. Nd2 {[%clk 0:01:36]}  Be6 {[%clk 0:02:29]} 17. Nc4 {[%clk 0:01:33]}  Bxc4 {[%clk 0:02:28]} 18. Qxc4 {[%clk 0:01:33]}  Ne6 {[%clk 0:02:26]} 19. Be3 {[%clk 0:01:33]}  Red8 {[%clk 0:02:22]} 20. Red1 {[%clk 0:01:32]}  Nd7 {[%clk 0:02:13]} 21. h4 {[%clk 0:01:26]}  Ra5 {[%clk 0:02:10]} 22. Rac1 {[%clk 0:01:22]}  Ndxc5 {[%clk 0:02:06]} 23. Bh3 {[%clk 0:00:58]}  Rxd1+ {[%clk 0:01:35]} 24. Rxd1 {[%clk 0:00:58]}  Rb5 {[%clk 0:01:32]} 25. Rd2 {[%clk 0:00:47]}  Nb3 {[%clk 0:01:19]} 26. Rc2 {[%clk 0:00:45]}  Nbd4 {[%clk 0:01:17]} 27. Rc1 {[%clk 0:00:26]}  Rxb2 {[%clk 0:01:13]} 28. Kg2 {[%clk 0:00:26]}  b5 {[%clk 0:01:05]} 29. Qc3 {[%clk 0:00:23]}  Rb3 {[%clk 0:01:05]} 30. Qd2 {[%clk 0:00:22]}  Rxa3 {[%clk 0:00:54]} 31. Bxe6 {[%clk 0:00:20]}  Nxe6 {[%clk 0:00:50]} 32. Qc2 {[%clk 0:00:19]}  c5 {[%clk 0:00:45]} 33. Rb1 {[%clk 0:00:17]}  Rb3 {[%clk 0:00:44]} 34. Rxb3 {[%clk 0:00:17]}  axb3 {[%clk 0:00:44]} 35. Qxb3 {[%clk 0:00:18]}  Qc6 {[%clk 0:00:42]} 36. f3 {[%clk 0:00:18]}  g5 {[%clk 0:00:39]} 37. hxg5 {[%clk 0:00:18]}  hxg5 {[%clk 0:00:39]} 38. Qc3 {[%clk 0:00:18]}  f6 {[%clk 0:00:37]} 39. Qd2 {[%clk 0:00:18]}  g4 {[%clk 0:00:36]} 40. Qa2 {[%clk 0:00:17]}  Kg7 {[%clk 0:00:34]} 41. Qa7+ {[%clk 0:00:16]}  Kg6 {[%clk 0:00:35]} 42. Qe7 {[%clk 0:00:15]}  gxf3+ {[%clk 0:00:33]} 43. Kxf3 {[%clk 0:00:16]}  b4 {[%clk 0:00:31]} 44. g4 {[%clk 0:00:15]}  b3 {[%clk 0:00:30]} 45. g5 {[%clk 0:00:15]}  Nxg5+ {[%clk 0:00:27]} 46. Bxg5 {[%clk 0:00:15]}  fxg5 {[%clk 0:00:26]} 47. Ke3 {[%clk 0:00:15]}  c4 {[%clk 0:00:20]} 48. Qxe5 {[%clk 0:00:14]}  c3 {[%clk 0:00:20]} 49. Qf5+ {[%clk 0:00:14]}  Kh6 {[%clk 0:00:19]} 50. Qh3+ {[%clk 0:00:14]}  Kg7 {[%clk 0:00:20]} 51. Qf5 {[%clk 0:00:13]}  Qf6 {[%clk 0:00:18]} 52. Qd7+ {[%clk 0:00:13]}  Kh6 {[%clk 0:00:18]} 53. Qh3+ {[%clk 0:00:13]}  Kg6 {[%clk 0:00:18]} 54. Qc8 {[%clk 0:00:12]}  c2 {[%clk 0:00:16]} 55. Qg8+ {[%clk 0:00:12]}  Kh6 {[%clk 0:00:17]} 56. Qc4 {[%clk 0:00:10]}  Qf4+ {[%clk 0:00:16]} 57. Ke2 {[%clk 0:00:08]}  c1=Q {[%clk 0:00:16]} 58. Qe6+ {[%clk 0:00:09]}  Kg7 {[%clk 0:00:16]} 59. Qe7+ {[%clk 0:00:09]}  Qf7 {[%clk 0:00:15]} 60. Qe5+ {[%clk 0:00:08]}  Qf6 {[%clk 0:00:16]} 0-1


[Site "https://www.chess.com"]

[Event "Titled Tuesday Blitz June 15 2021"]
[White "Assaubayeva, Bibisara"]
[Black "Materia, Marco"]
[WhiteFideId "13708694"]
[BlackFideId "45150451"]
[WhiteElo "2232"]
[BlackElo "2632"]
[Result "1-0"]
[Round "10"]
[TimeControl "180+1"]
[Date "2021.06.15"]
[WhiteClock "0:00:55"]
[BlackClock "0:00:43"]

1. d4 {[%clk 0:03:00]}  Nf6 {[%clk 0:02:59]} 2. c4 {[%clk 0:03:00]}  e6 {[%clk 0:02:59]} 3. Nf3 {[%clk 0:03:00]}  c5 {[%clk 0:02:57]} 4. d5 {[%clk 0:02:59]}  exd5 {[%clk 0:02:57]} 5. cxd5 {[%clk 0:02:59]}  d6 {[%clk 0:02:58]} 6. Nc3 {[%clk 0:03:00]}  g6 {[%clk 0:02:58]} 7. Bf4 {[%clk 0:03:00]}  a6 {[%clk 0:02:49]} 8. a4 {[%clk 0:03:00]}  Bg7 {[%clk 0:02:49]} 9. h3 {[%clk 0:03:00]}  O-O {[%clk 0:02:49]} 10. e3 {[%clk 0:03:01]}  Bf5 {[%clk 0:02:47]} 11. Nd2 {[%clk 0:02:58]}  Re8 {[%clk 0:02:44]} 12. Be2 {[%clk 0:02:57]}  Qe7 {[%clk 0:02:24]} 13. Nc4 {[%clk 0:02:50]}  Rd8 {[%clk 0:02:20]} 14. O-O {[%clk 0:02:47]}  Ne8 {[%clk 0:02:08]} 15. Bf3 {[%clk 0:02:38]}  Nd7 {[%clk 0:02:05]} 16. e4 {[%clk 0:02:36]}  Bxc3 {[%clk 0:02:03]} 17. bxc3 {[%clk 0:02:13]}  Bxe4 {[%clk 0:02:02]} 18. Re1 {[%clk 0:02:11]}  f5 {[%clk 0:01:58]} 19. Qc2 {[%clk 0:01:56]}  Qh4 {[%clk 0:01:47]} 20. Bxe4 {[%clk 0:01:44]}  Qxf4 {[%clk 0:01:45]} 21. g3 {[%clk 0:01:44]}  Qh6 {[%clk 0:01:44]} 22. Bg2 {[%clk 0:01:44]}  b5 {[%clk 0:01:42]} 23. Na5 {[%clk 0:01:43]}  Ne5 {[%clk 0:01:35]} 24. f4 {[%clk 0:01:40]}  Nc4 {[%clk 0:01:35]} 25. Nc6 {[%clk 0:01:38]}  Nf6 {[%clk 0:01:32]} 26. Nxd8 {[%clk 0:01:35]}  Rxd8 {[%clk 0:01:32]} 27. axb5 {[%clk 0:01:35]}  axb5 {[%clk 0:01:32]} 28. Ra7 {[%clk 0:01:35]}  Nh5 {[%clk 0:01:31]} 29. Qe2 {[%clk 0:01:28]}  Qf8 {[%clk 0:01:24]} 30. Kh2 {[%clk 0:01:25]}  Nf6 {[%clk 0:01:15]} 31. Qd3 {[%clk 0:01:25]}  Re8 {[%clk 0:01:13]} 32. Re6 {[%clk 0:01:24]}  Nh5 {[%clk 0:01:10]} 33. Qb1 {[%clk 0:01:13]}  Rb8 {[%clk 0:01:07]} 34. Ree7 {[%clk 0:01:10]}  Nf6 {[%clk 0:01:08]} 35. Qe1 {[%clk 0:01:09]}  Qc8 {[%clk 0:00:55]} 36. Rg7+ {[%clk 0:01:05]}  Kh8 {[%clk 0:00:54]} 37. Qe7 {[%clk 0:01:05]}  Qf8 {[%clk 0:00:44]} 38. Rxh7+ {[%clk 0:01:04]}  Kg8 {[%clk 0:00:44]} 39. Qxf8+ {[%clk 0:01:03]}  Kxf8 {[%clk 0:00:44]} 40. Rhf7+ {[%clk 0:01:03]}  Kg8 {[%clk 0:00:43]} 41. Rxf6 {[%clk 0:01:03]}  b4 {[%clk 0:00:44]} 42. Rxg6+ {[%clk 0:01:02]}  Kh8 {[%clk 0:00:43]} 43. cxb4 {[%clk 0:00:59]}  cxb4 {[%clk 0:00:44]} 44. Bf1 {[%clk 0:00:59]}  Nb2 {[%clk 0:00:42]} 45. Rgg7 {[%clk 0:00:53]}  b3 {[%clk 0:00:42]} 46. Rh7+ {[%clk 0:00:53]}  Kg8 {[%clk 0:00:41]} 47. Rag7+ {[%clk 0:00:54]}  Kf8 {[%clk 0:00:42]} 48. Rh8+ {[%clk 0:00:55]}  Kxg7 {[%clk 0:00:43]} 49. Rxb8 {[%clk 0:00:55]} 1-0


[Site "https://www.chess.com"]